bitfinex/quotes_ETHUSD_20220118
["timestamp","ask_amount","ask_price","bid_price","bid_amount"]
[1642516507952,3.23798808,3107.1,3105.8,12.96684212]
[1642516507953,3.23798808,3107.1,3106.5,0.0123915]
[1642516508148,4.08691589,3107.6,3106.7,1.39083806]
[1642516508348,4.04748509,3107.6,3106.9,6.1]
[1642516508549,4.04748509,3107.6,3107.5,6.01408841]
[1642516509153,2.12894402,3107.8,3107.5,1.11408841]
[1642516509350,2.12894402,3107.8,3107.0,0.1287]
[1642516509551,2.1334914,3107.8,3107.0,0.1287]
[1642516509751,2.1334914,3107.8,3107.0,0.0787]
[1642516509965,0.1287,3107.7,3107.0,0.0787]
[1642516510385,2.27838046,3107.2,3107.0,0.0787]
[1642516510587,2.57838046,3107.2,3107.0,0.0787]
[1642516510784,0.1287,3107.1,3107.0,0.0787]
[1642516510984,2.57838046,3107.2,3107.0,0.0787]
[1642516511585,0.1287,3107.1,3107.0,0.0787]
[1642516511785,0.98526956,3107.1,3106.8,0.00113685]
[1642516511987,0.04954722,3107.0,3106.8,0.00113685]
[1642516512187,0.1287,3106.9,3106.0,0.00568424]
[1642516512589,2.21410527,3106.6,3106.0,0.00568424]
[1642516512791,3.01908527,3106.6,3106.0,0.00568424]
[1642516513092,3.01908527,3106.6,3106.0,2.48338683]
[1642516513093,0.93368,3106.5,3106.0,2.48338683]
[1642516513290,0.03529624,3106.4,3106.0,2.48338683]
[1642516513491,2.12468,3106.5,3106.1,0.00511581]
[1642516513689,0.1287,3106.3,3106.1,0.00511581]
[1642516513943,0.8050917,3106.3,3106.1,0.00511581]
[1642516514143,2.8287,3106.2,3106.1,0.00511581]
[1642516514343,9.71497079,3106.2,3105.8,0.00682108]
[1642516514544,9.71497079,3106.2,3105.0,0.007]
[1642516514545,3.41282294,3106.0,3105.0,0.007]
[1642516514744,0.80529,3105.7,3105.0,0.007]
[1642516514943,0.8052691,3105.5,3105.1,0.00397897]
[1642516515143,1.03283785,3105.5,3105.1,0.00397897]
[1642516515344,0.3,3105.4,3105.1,0.00397897]
[1642516515547,0.1288,3105.3,3105.1,0.00397897]
[1642516515950,0.9340498,3105.3,3105.1,0.00397897]
[1642516516146,2.0393598,3105.3,3105.1,0.00397897]
[1642516516346,6.11202733,3105.2,3105.1,0.00397897]
[1642516516547,6.54082733,3105.2,3105.1,0.00397897]
[1642516516746,7.54082733,3105.2,3105.1,0.00397897]
[1642516516947,2.79962474,3105.2,3105.1,0.00397897]
[1642516517147,2.0395782,3105.2,3105.1,0.00397897]
[1642516517349,2.75,3105.0,3104.2,5.41949704]
[1642516517585,1.6112766,3104.8,3104.2,5.41949704]
[1642516517784,1.6112766,3104.8,3104.3,0.00454739]
[1642516517785,0.1288,3104.7,3104.3,0.00454739]
[1642516517984,0.7288,3104.7,3104.3,0.00454739]
[1642516518184,0.03749355,3104.6,3104.3,0.00454739]
[1642516518387,1.89985472,3104.5,3104.3,0.00454739]
[1642516518589,1.234467,3104.5,3104.3,0.00454739]
[1642516518992,1.27125772,3104.5,3104.3,0.00454739]
[1642516519596,2.01484436,3104.4,3104.3,0.00454739]
[1642516519994,3.31484436,3104.4,3104.3,0.00454739]
[1642516520193,3.31484436,3104.4,3103.6,1.63325505]
[1642516520194,0.8057,3104.3,3103.6,1.63325505]
[1642516520394,18.81216706,3104.1,3103.2,2.12249332]
[1642516520694,0.1288,3104.0,3103.2,2.12249332]
[1642516520897,2.14182061,3103.7,3103.2,1.72590386]
[1642516521093,0.3,3103.7,3103.2,1.72590386]
[1642516521340,0.80752527,3103.6,3103.2,1.62590386]
[1642516521547,1.70252527,3103.6,3103.2,1.62590386]
[1642516521743,0.00113685,3103.5,3103.0,2.45827587]
[1642516522044,0.00113685,3103.5,3103.1,0.12993685]
[1642516522445,0.00113685,3103.5,3103.2,3.42304915]
[1642516523045,3.685e-05,3103.5,3103.3,0.1288]
[1642516523245,3.685e-05,3103.5,3103.3,0.1299]
[1642516523448,3.685e-05,3103.5,3103.3,0.0011]
[1642516523653,3.685e-05,3103.5,3103.4,6.2288]
[1642516525106,0.83664509,3103.9,3103.7,5.20076315]
[1642516525297,0.386,3105.2,3103.7,6.30452965]
[1642516525298,0.0387698,3104.9,3103.7,6.30452965]
[1642516525498,0.1288,3105.0,3104.3,1.95979561]
[1642516525697,0.3,3105.1,3103.7,6.30452965]
[1642516525698,0.4288,3105.1,3103.7,6.30452965]
[1642516525898,0.02143803,3104.8,3103.7,6.30452965]
[1642516526104,0.34019165,3104.9,3103.7,6.30452965]
[1642516526299,0.00682108,3104.7,3103.7,6.30452965]
[1642516526498,0.1288,3104.6,3104.2,1.42649048]
[1642516526698,0.00625265,3104.6,3104.2,1.42649048]
[1642516526898,0.13448423,3104.5,3104.2,1.42649048]
[1642516527099,0.84143788,3104.5,3104.2,1.42649048]
[1642516527299,0.00511581,3104.4,3104.2,1.42649048]
[1642516527700,0.00454738,3104.3,3104.2,1.42649048]
[1642516527899,0.00454738,3104.3,3104.2,3.22160378]
[1642516528099,0.00454738,3104.3,3104.2,1.42649048]
[1642516528500,0.00454738,3104.3,3104.2,4.67649048]
[1642516529340,0.00454738,3104.3,3104.2,7.52649048]
[1642516529943,0.00454738,3104.3,3104.2,9.38430867]
[1642516530644,0.1288,3105.6,3104.4,0.11667918]
[1642516530843,0.80502,3106.5,3105.0,0.01266374]
[1642516530844,0.1288,3106.1,3105.0,0.01266374]
[1642516531045,0.14105114,3106.8,3105.1,6.1]
[1642516531250,0.14105114,3106.8,3105.3,0.03826671]
[1642516531251,0.01225114,3106.8,3105.3,0.03826671]
[1642516531444,0.00568424,3106.4,3105.2,7.17300921]
[1642516531644,0.00568424,3106.4,3106.0,1.14636224]
[1642516531645,2.00286853,3106.2,3106.0,1.14636224]
[1642516531843,0.1287,3106.7,3106.0,1.14636224]
[1642516531844,0.00511581,3106.3,3106.0,1.14636224]
[1642516532051,0.00397897,3106.1,3106.0,1.14636224]
[1642516532249,0.00454739,3106.2,3106.0,1.14636224]
[1642516532450,0.01225114,3106.8,3106.0,1.14636224]
[1642516532451,0.00397897,3106.1,3106.0,1.14636224]
[1642516533496,0.00397897,3106.1,3105.5,3.7431]
[1642516533698,0.01551094,3106.0,3105.5,3.7431]
[1642516533899,0.00341054,3106.0,3105.5,3.7431]
[1642516534096,0.13154212,3105.9,3105.5,3.7431]
[1642516534296,0.00284212,3105.9,3105.5,3.7431]
[1642516534502,0.00284212,3105.9,3105.2,0.00113685]
[1642516534503,4.18055882,3105.8,3105.2,0.00113685]
[1642516534703,5.79106882,3105.8,3105.2,0.00113685]
[1642516534901,1.01715335,3105.7,3105.0,0.00227369]
[1642516535104,0.1288,3105.6,3104.7,0.00397896]
[1642516535400,0.8052807,3105.4,3104.6,0.00454739]
[1642516535602,0.80535,3105.2,3104.6,0.00454739]
[1642516535802,0.1288,3105.1,3104.9,1.43299463]
[1642516536200,0.1288,3105.1,3105.0,0.00227369]
[1642516536740,0.80537,3105.0,3104.6,0.00454739]
[1642516536942,0.75537,3105.0,3104.6,0.00454739]
[1642516537138,1.05537,3105.0,3104.6,1.21356642]
[1642516537545,0.3,3105.0,3104.7,0.00397896]
[1642516537745,3.3288,3105.1,3104.7,0.00397896]
[1642516537945,3.6288,3105.1,3104.7,0.00397896]
[1642516538552,5.62463334,3105.1,3104.7,0.00397896]
[1642516538749,0.03057363,3105.0,3104.7,0.00397896]
[1642516539052,6.42996334,3105.1,3104.2,0.00682108]
[1642516539053,0.1288,3104.9,3104.2,0.00682108]
[1642516539249,0.00915424,3104.9,3104.2,0.00682108]
[1642516539448,0.4288,3105.0,3104.2,0.00682108]
[1642516539449,0.1288,3104.8,3104.2,0.00682108]
[1642516539648,0.1288,3104.9,3104.5,1.27506522]
[1642516539849,0.1288,3105.0,3104.5,1.27506522]
[1642516540091,0.1288,3105.0,3104.6,0.00454739]
[1642516540293,3.3288,3105.1,3104.6,0.00454739]
[1642516540493,3.2,3105.1,3104.6,0.00454739]
[1642516540891,3.2,3105.1,3104.7,2.21784071]
[1642516541293,3.2,3105.1,3104.8,0.00341054]
[1642516542195,3.35,3105.1,3104.8,0.00341054]
[1642516542795,3.2,3105.1,3104.8,0.00341054]
[1642516543197,3.2,3105.1,3104.9,0.1288]
[1642516543498,3.2,3105.1,3105.0,7.04923312]
[1642516545190,0.00113685,3105.6,3105.0,7.04923312]
[1642516545393,0.00113685,3105.6,3105.1,5.03550694]
[1642516545591,0.00113685,3105.6,3105.2,2.24115655]
[1642516545794,0.00113685,3105.6,3105.2,2.2422934]
[1642516546793,0.00113685,3105.6,3105.3,0.1288]
[1642516547394,0.00113685,3105.6,3105.4,0.01201063]
[1642516547593,3.20003685,3105.6,3105.5,7.29686746]
[1642516547795,0.1288,3106.9,3105.6,6.1138]
[1642516548095,0.1288,3106.9,3106.4,0.03095316]
[1642516548297,0.00568423,3106.6,3105.6,7.3047]
[1642516548495,0.00568423,3106.6,3105.7,2.10741258]
[1642516548696,0.13381581,3106.5,3105.7,2.10741258]
[1642516548897,0.00511581,3106.5,3105.7,2.10741258]
[1642516549099,0.00454739,3106.4,3105.7,2.10741258]
[1642516549500,0.80487,3106.9,3105.7,2.10741258]
[1642516549501,0.00397896,3106.3,3106.1,1.44516822]
[1642516549897,0.00341054,3106.2,3106.1,1.44516822]
[1642516550098,0.00341054,3106.2,3105.6,2.8047]
[1642516550500,0.00284212,3106.1,3105.6,1.6138]
[1642516550902,1.60981,3107.1,3106.7,1.10468218]
[1642516551342,1.91793821,3107.0,3106.7,1.10468218]
[1642516551742,1.91793821,3107.0,3106.0,2.4152964]
[1642516551743,0.00454738,3106.9,3106.0,2.4152964]
[1642516551943,1.64725385,3106.5,3106.2,1.30746935]
[1642516552148,1.64725385,3106.5,3106.0,2.4152964]
[1642516552346,1.64725385,3106.5,3105.7,0.0022737]
[1642516552347,0.00170527,3106.4,3105.7,0.0022737]
[1642516552549,0.386,3106.3,3105.7,0.0022737]
[1642516552749,0.38713684,3106.3,3105.5,0.00341054]
[1642516552950,1.75588214,3106.3,3105.5,0.00341054]
[1642516553152,1.54298034,3106.2,3105.5,0.00341054]
[1642516553352,0.386,3106.1,3105.5,0.00341054]
[1642516553550,0.86552455,3106.0,3105.5,0.00341054]
[1642516553751,0.386,3105.9,3105.0,0.00625266]
[1642516553950,0.1288,3105.8,3104.5,0.00909478]
[1642516554351,1.87045641,3104.8,3104.7,0.8053115]
[1642516554753,1.87045641,3104.8,3104.7,0.81326943]
[1642516555622,0.1288,3104.9,3104.7,0.81326943]
[1642516555823,0.1288,3105.0,3104.7,0.81326943]
[1642516556124,0.80532,3105.1,3104.8,0.00738951]
[1642516556322,0.1288,3105.0,3104.8,0.00738951]
[1642516556727,3.74899566,3104.9,3104.8,0.00738951]
[1642516556922,3.87779566,3104.9,3104.8,0.00738951]
[1642516557122,4.87779566,3104.9,3104.8,0.00738951]
[1642516557330,10.31124152,3104.9,3104.8,0.00738951]
[1642516557521,10.31124152,3104.9,3104.3,1.6109205]
[1642516557522,0.80564,3104.6,3103.7,0.00076315]
[1642516557722,0.80564,3104.6,3103.7,0.80635645]
[1642516557922,2.9386814,3104.0,3103.9,0.00511581]
[1642516558122,1.81756085,3104.0,3103.9,0.00511581]
[1642516558323,1.94636085,3104.0,3103.8,1.61687203]
[1642516558623,0.1288,3103.9,3103.8,1.61687203]
[1642516558846,0.1288,3103.9,3103.8,0.00568423]
[1642516559852,3.80995423,3104.0,3103.8,0.00568423]
[1642516560047,1.81756085,3104.0,3103.8,0.00568423]
[1642516560850,1.76756085,3104.0,3103.8,0.00568423]
[1642516561851,0.80567,3103.9,3103.8,0.00568423]
[1642516562052,1.63867,3103.9,3103.8,0.00568423]
[1642516562896,0.833,3103.9,3103.8,0.00568423]
[1642516563097,1.76756085,3104.0,3103.8,0.00568423]
[1642516563897,2.57315085,3104.0,3103.8,0.00568423]
[1642516564596,1.76756085,3104.0,3103.8,0.00568423]
[1642516565000,2.57316085,3104.0,3103.8,0.00568423]
[1642516565200,0.1288,3104.3,3103.8,0.81120773]
[1642516565400,0.80552,3104.9,3103.9,0.04860376]
[1642516565401,0.1288,3104.9,3103.9,0.04860376]
[1642516565599,0.13819997,3105.0,3103.9,0.80533]
[1642516565798,0.13819997,3105.0,3104.0,0.00454739]
[1642516565799,0.1288,3104.9,3104.0,0.00454739]
[1642516566001,0.94351997,3105.0,3104.0,0.00454739]
[1642516566198,2.30979848,3104.5,3104.1,1.28633761]
[1642516566444,2.30979848,3104.5,3104.0,0.00454739]
[1642516566644,2.30979848,3104.5,3104.2,0.00341054]
[1642516566842,2.30979848,3104.5,3104.0,1.61514809]
[1642516567042,0.1288,3104.4,3104.0,0.00454739]
[1642516567245,0.1288,3104.4,3104.1,0.00397896]
[1642516567448,0.1288,3104.4,3104.0,0.00454739]
[1642516567847,3.11525848,3104.5,3104.0,0.00454739]
[1642516568046,3.11525848,3104.5,3103.8,0.00568423]
[1642516568248,2.27727343,3103.9,3103.8,0.00568423]
[1642516568947,2.27727343,3103.9,3103.8,3.60568423]
[1642516569347,2.27727343,3103.9,3103.8,0.00568423]
[1642516569547,2.40607343,3103.9,3103.8,1.83017213]
[1642516569948,2.40607343,3103.9,3103.7,0.00076315]
[1642516569949,2.65,3103.8,3103.7,0.00076315]
[1642516570205,2.65,3103.8,3103.2,2.51822796]
[1642516570206,2.95,3103.7,3103.2,2.51822796]
[1642516570402,0.03805522,3103.5,3103.2,2.51822796]
[1642516570600,3.95,3103.7,3103.3,0.00284212]
[1642516570601,0.1288,3103.4,3103.3,0.00284212]
[1642516570799,0.0788,3103.4,3103.3,0.00284212]
[1642516571006,0.0788,3103.4,3102.7,0.00625266]
[1642516571007,1.6908,3103.4,3102.7,0.00625266]
[1642516571301,1.88321947,3102.8,3102.7,0.00625266]
[1642516571901,1.88321947,3102.8,3102.7,3.25625266]
[1642516572101,0.1288,3103.3,3102.7,3.25625266]
[1642516572502,0.1288,3103.5,3102.8,0.00568424]
[1642516572706,0.80587,3103.0,3102.8,0.00568424]
[1642516572902,0.80587,3103.0,3102.6,0.00682109]
[1642516573306,1.2616529,3102.7,3102.6,0.00682109]
[1642516573504,0.1288,3102.7,3102.6,0.00682109]
[1642516573714,0.80601,3102.7,3102.6,0.00682109]
[1642516573970,3.23376615,3102.7,3102.6,0.00682109]
[1642516574269,0.1288,3103.5,3102.6,0.00682109]
[1642516574667,1.24180774,3103.4,3102.8,1.48665623]
[1642516574866,1.24180774,3103.4,3102.6,0.81254719]
[1642516574867,0.1288,3103.3,3102.6,0.81254719]
[1642516575069,2.85338774,3103.4,3102.9,0.00511581]
[1642516575070,0.8058,3103.2,3102.9,0.00511581]
[1642516575270,2.2204294,3103.1,3102.7,0.00625266]
[1642516575668,0.01516587,3103.0,3102.6,0.00682109]
[1642516575967,0.80586,3102.9,3102.6,0.0560459]
[1642516576169,0.80756528,3102.9,3102.6,0.0560459]
[1642516576368,0.1288,3103.2,3102.5,1.63501068]
[1642516576369,0.00113685,3102.8,3102.5,1.63501068]
[1642516576569,0.00113685,3102.8,3102.5,0.02348948]
[1642516576769,0.1288,3102.7,3102.5,0.02348948]
[1642516576968,0.00284212,3103.1,3102.5,0.02348948]
[1642516576969,0.80596,3102.6,3102.5,0.02348948]
[1642516577803,0.80596,3102.6,3102.5,2.57348948]
[1642516578602,0.80596,3102.6,3102.5,0.02348948]
[1642516579406,0.1288,3102.9,3102.5,0.02348948]
[1642516579604,0.0022737,3103.0,3102.6,0.09065109]
[1642516579605,0.80587,3102.8,3102.6,0.09065109]
[1642516579805,0.80587,3102.8,3102.5,0.02348948]
[1642516579806,0.80700685,3102.8,3102.5,0.02348948]
[1642516580010,0.80587,3102.8,3102.5,0.02348948]
[1642516581206,0.93467,3102.8,3102.5,0.02348948]
[1642516581448,0.1288,3102.8,3102.5,0.02348948]
[1642516581646,0.00170528,3102.9,3102.5,0.02348948]
[1642516582052,0.00113685,3102.8,3102.5,0.02348948]
[1642516582449,1.71267849,3103.3,3102.6,2.99875845]
[1642516582648,0.80576,3103.2,3102.6,2.99875845]
[1642516582849,0.80917055,3103.2,3102.6,2.99875845]
[1642516583053,0.00284212,3103.1,3102.6,2.99875845]
[1642516583450,0.0022737,3103.0,3102.6,2.99875845]
[1642516583651,0.8080937,3103.0,3102.6,2.99875845]
[1642516583851,0.00170528,3102.9,3102.6,2.99875845]
[1642516584050,0.00170528,3102.9,3102.6,1.38725205]
[1642516584264,0.00113685,3102.8,3102.5,0.82924168]
[1642516584653,0.80591,3102.7,3102.5,0.82924168]
[1642516584954,0.0022737,3103.0,3102.5,0.82924168]
[1642516585199,0.0022737,3103.0,3102.6,1.7245009]
[1642516585400,0.00170528,3102.9,3102.6,1.7245009]
[1642516585801,0.1288,3103.8,3102.6,1.7245009]
[1642516585802,0.80565,3103.7,3102.7,7.28522393]
[1642516586005,1.6113,3104.0,3102.7,9.19668133]
[1642516586201,0.00511581,3103.7,3103.1,0.01210895]
[1642516586404,0.00511581,3103.7,3103.2,2.99236425]
[1642516586603,1.61926188,3104.7,3103.2,4.09780425]
[1642516586604,0.00454739,3103.6,3103.2,4.09780425]
[1642516586803,0.00454739,3103.6,3103.2,4.39780425]
[1642516587003,1.97100233,3104.7,3104.5,1.23841939]
[1642516587405,0.00568423,3104.6,3104.5,3.70846966]
[1642516587805,0.00568423,3104.6,3104.5,5.90846966]
[1642516588006,0.00568423,3104.6,3104.5,6.41371706]
[1642516588209,0.00568423,3104.6,3104.5,6.71371706]
[1642516588407,0.00568423,3104.6,3104.5,2.04366679]
[1642516589045,0.00568423,3104.6,3104.4,1.6104948]
[1642516589246,0.17226845,3104.5,3104.3,8.0824519]
[1642516589442,0.00511581,3104.5,3104.3,8.0824519]
[1642516589642,0.00454739,3104.4,3104.3,8.0824519]
[1642516589842,0.13334739,3104.4,3104.3,0.8054519]
[1642516590246,0.93881739,3104.4,3104.3,0.8054519]
[1642516590448,0.00454739,3104.4,3104.3,0.8054519]
[1642516590648,0.00454739,3104.4,3104.3,1.1054519]
[1642516590849,0.00454739,3104.4,3104.3,7.34365187]
[1642516591349,3.84797321,3106.0,3104.4,6.1]
[1642516591548,3.84797321,3106.0,3104.8,0.8049711]
[1642516591549,1.74817088,3106.0,3104.8,0.8049711]
[1642516591749,0.00568423,3105.4,3104.8,4.4418711]
[1642516592149,0.00511581,3105.3,3104.8,4.4418711]
[1642516592348,3.29416705,3105.2,3104.8,4.4418711]
[1642516592614,3.29416705,3105.2,3104.3,0.13819997]
[1642516592615,0.01461938,3105.0,3104.5,1.44070786]
[1642516592811,0.1288,3104.9,3104.5,2.24610576]
[1642516593010,0.00284211,3104.9,3104.5,2.24610576]
[1642516593211,0.00227369,3104.8,3104.5,1.44070786]
[1642516593416,1.61096,3104.7,3104.5,1.44070786]
[1642516593613,0.1288,3104.6,3104.5,1.44070786]
[1642516593812,0.12993684,3104.6,3104.4,1.48946815]
[1642516594214,0.12993684,3104.6,3104.4,2.29480675]
[1642516594413,0.12993684,3104.6,3104.5,0.3]
[1642516594414,0.00113684,3104.6,3104.5,0.3]
[1642516594813,0.00113684,3104.6,3104.4,4.44955268]
[1642516595018,1.37030666,3105.6,3104.6,6.05]
[1642516595019,0.5928,3105.6,3104.6,6.05]
[1642516595221,4.03532188,3105.8,3105.2,1.28571713]
[1642516595222,0.1288,3105.7,3105.2,1.28571713]
[1642516595620,1.61926188,3105.6,3105.2,1.28571713]
[1642516595820,0.1288,3105.5,3104.8,1.6102617]
[1642516596024,3.0738122,3105.4,3104.8,1.6102617]
[1642516596223,0.15452079,3105.3,3104.8,1.6102617]
[1642516596468,0.15452079,3105.3,3104.9,1.6104333]
[1642516596469,0.00397897,3105.3,3104.9,1.6104333]
[1642516596658,0.00341054,3105.2,3104.9,1.6104333]
[1642516597059,0.80813212,3105.1,3104.3,0.13819997]
[1642516597259,5.01283537,3105.0,3103.8,3.9731]
[1642516597458,0.1288,3104.9,3104.4,0.00113684]
[1642516597659,0.13050527,3104.9,3104.1,0.00284211]
[1642516597860,0.02505967,3104.8,3104.1,0.00284211]
[1642516598060,1.86261355,3104.2,3104.1,0.00284211]
[1642516598259,3.79535355,3104.2,3103.9,0.00397896]
[1642516598459,0.03318745,3104.1,3104.0,0.00341054]
[1642516598663,3.66655355,3104.2,3103.8,0.00454738]
[1642516598860,0.00520035,3104.1,3103.8,0.00454738]
[1642516599064,0.5928,3104.0,3103.8,0.00454738]
[1642516599263,5.75585,3103.9,3103.0,3.6689]
[1642516599461,0.5928,3103.8,3103.1,0.00397897]
[1642516599661,1.61174,3103.7,3103.1,0.00397897]
[1642516599860,0.1288,3103.6,3103.1,0.00397897]
[1642516600297,0.1288,3103.6,3103.1,2.06749942]
[1642516600497,0.464,3103.7,3103.3,1.26382081]
[1642516600698,0.414,3103.7,3103.2,0.00341054]
[1642516600900,2.1,3103.6,3103.0,3.6689]
[1642516601097,0.02727759,3103.5,3103.1,0.00170527]
[1642516601304,0.1288,3103.4,3103.1,0.00170527]
[1642516601497,0.93466,3103.5,3103.1,0.00170527]
[1642516601698,3.63475696,3103.4,3103.1,0.00170527]
[1642516601898,0.64823996,3103.3,3103.1,0.00170527]
[1642516602098,0.5928,3103.3,3102.6,0.00454739]
[1642516602901,1.27501329,3103.2,3102.7,1.41820764]
[1642516603123,2.08088329,3103.2,3102.8,1.36331507]
[1642516603299,2.08088329,3103.2,3102.9,2.01737573]
[1642516603300,1.27501329,3103.2,3102.9,2.01737573]
[1642516603599,1.27501329,3103.2,3103.0,0.00227369]
[1642516603849,0.59393685,3103.6,3103.0,0.00227369]
[1642516604047,0.59393685,3103.6,3102.9,0.00284211]
[1642516604048,0.8058,3103.1,3102.9,0.00284211]
[1642516604447,0.8058,3103.1,3102.8,0.00341054]
[1642516604647,1.98630986,3103.0,3102.6,0.00454739]
[1642516604951,3.29613367,3103.0,3102.6,0.00454739]
[1642516605154,3.29613367,3103.0,3102.6,1.26089201]
[1642516605353,1.30982381,3103.0,3102.6,1.26089201]
[1642516605553,1.30982381,3103.0,3102.7,0.00397896]
[1642516606055,0.02104423,3102.9,3102.6,0.00454739]
[1642516606255,0.80594,3102.8,3102.6,0.00454739]
[1642516607253,3.57261753,3102.7,3102.6,0.00454739]
[1642516607704,1.30982381,3102.7,3102.6,0.00454739]
[1642516608705,1.30982381,3102.7,3102.1,6.989]
[1642516608706,5.25,3102.6,3101.9,0.1288]
[1642516608906,0.01212412,3102.1,3101.9,0.1288]
[1642516609107,1.361,3102.1,3102.0,0.22319962]
[1642516609304,0.1288,3102.4,3102.0,3.72319962]
[1642516609502,0.387,3102.6,3102.1,6.33200816]
[1642516609704,0.387,3102.6,3102.1,2.02487731]
[1642516610309,0.387,3102.6,3102.5,1.44803955]
[1642516611542,0.387,3102.6,3102.5,4.19803955]
[1642516611942,0.387,3102.6,3102.5,1.44803955]
[1642516612443,0.387,3102.7,3102.6,6.1]
[1642516612644,1.48686188,3103.4,3102.8,0.08238452]
[1642516612847,1.48686188,3103.4,3102.7,4.75]
[1642516612848,1.38756188,3103.4,3102.7,5.05]
[1642516613046,0.00397897,3103.3,3102.8,0.1288]
[1642516613447,0.00341055,3103.2,3102.9,2.2871591]
[1642516613646,0.00341055,3103.2,3102.9,2.5871591]
[1642516613848,0.00284212,3103.1,3102.9,2.5871591]
[1642516614047,0.00284212,3103.1,3103.0,6.2288]
[1642516614251,1.97100233,3103.7,3103.0,6.2288]
[1642516614448,3.26836783,3104.1,3103.0,6.2288]
[1642516614648,2.58007587,3104.2,3103.7,2.95083432]
[1642516614847,4.19133587,3104.2,3103.7,2.95083432]
[1642516615146,4.19133587,3104.2,3103.1,0.1288]
[1642516615147,0.00852636,3104.1,3103.1,0.1288]
[1642516615346,0.8057,3103.8,3102.8,1.3109]
[1642516615546,0.01272645,3103.6,3102.8,0.1288]
[1642516615745,18.8,3103.4,3102.8,0.1288]
[1642516615944,18.8,3103.4,3102.0,0.22319962]
[1642516615945,0.5158,3103.3,3102.0,0.22319962]
[1642516616144,2.07788717,3102.9,3102.1,2.04358043]
[1642516616344,1.40497473,3102.7,3102.1,2.04358043]
[1642516616545,1.32184,3102.6,3102.2,0.00227369]
[1642516616745,0.387,3102.5,3102.2,0.00227369]
[1642516618047,0.387,3102.5,3102.4,4.61005679]
[1642516618447,0.00113685,3102.8,3102.4,4.61119363]
[1642516619452,1.11187932,3102.5,3102.4,1.31119363]
[1642516620456,1.11187932,3102.5,3102.4,6.46119363]
[1642516620856,0.00113685,3102.8,3102.5,4.95]
[1642516621059,0.1288,3103.6,3102.6,6.1]
[1642516621258,0.387,3104.0,3103.3,1.10585732]
[1642516621259,2.45127587,3104.0,3103.3,1.10585732]
[1642516621459,2.45127587,3104.0,3102.7,3.6116]
[1642516621460,0.09520588,3103.9,3102.7,3.6116]
[1642516621659,0.7557,3103.7,3102.7,3.6116]
[1642516621859,0.5158,3103.6,3102.8,0.00341054]
[1642516622163,1.61206,3103.5,3102.3,0.00625266]
[1642516622359,1.40923472,3103.2,3102.3,0.00625266]
[1642516622600,0.80601,3103.0,3102.3,0.00625266]
[1642516622804,0.0788,3103.1,3102.3,0.00625266]
[1642516623006,0.1288,3103.5,3102.6,2.21136919]
[1642516623308,0.38813685,3103.6,3102.7,0.00397896]
[1642516623505,0.1288,3103.5,3102.7,0.00397896]
[1642516623705,0.38813685,3103.6,3102.7,0.00397896]
[1642516623706,0.80687685,3103.6,3103.3,1.2217923]
[1642516623907,0.00113685,3103.6,3103.3,1.2217923]
[1642516624106,0.00113685,3103.6,3103.4,2.02252105]
[1642516624107,1.63000568,3103.6,3103.4,2.02252105]
[1642516624505,1.63000568,3103.6,3103.3,1.2217923]
[1642516625107,1.63000568,3103.6,3103.4,0.1288]
[1642516625508,3.26836783,3104.1,3103.5,6.1]
[1642516625709,2.45127587,3104.5,3103.6,0.83583432]
[1642516625919,0.00113685,3103.8,3103.7,6.14743876]
[1642516626109,0.00113685,3103.8,3103.7,6.1]
[1642516626645,1.43937587,3104.5,3103.9,0.83378612]
[1642516626844,3.26836783,3104.7,3104.6,4.76549674]
[1642516627049,3.26836783,3104.7,3104.6,3.88024494]
[1642516627254,2.44145396,3105.1,3104.6,3.88024494]
[1642516627747,0.00682108,3105.0,3104.6,3.88024494]
[1642516628150,0.00625265,3104.9,3104.6,3.88024494]
[1642516628348,0.06146415,3105.4,3104.7,5.65]
[1642516628548,3.26836783,3105.7,3104.7,5.77993684]
[1642516628749,0.00170527,3105.2,3104.7,6.07993684]
[1642516628947,0.00170527,3105.2,3104.7,6.58510684]
[1642516629147,0.00113685,3105.1,3104.7,0.93510684]
[1642516629349,0.01666391,3104.9,3104.7,0.00113684]
[1642516629951,3.3288,3105.0,3104.4,0.00284211]
[1642516629952,0.1288,3104.8,3104.4,0.00284211]
[1642516630202,2.33354588,3104.7,3104.2,0.00397896]
[1642516630402,2.46234588,3104.7,3104.2,0.00397896]
[1642516630603,1.18255339,3104.6,3104.2,0.00397896]
[1642516630801,1.18255339,3104.6,3104.0,0.00511581]
[1642516631008,0.1288,3104.5,3103.8,0.00625265]
[1642516631204,0.05410711,3104.4,3103.6,0.0073895]
[1642516631403,2.19442784,3103.7,3103.6,0.0073895]
[1642516631704,0.1288,3104.3,3103.6,0.0073895]
[1642516631902,1.61128,3104.3,3103.6,0.0073895]
[1642516632106,0.1288,3104.3,3103.6,0.0073895]
[1642516633303,3.02286962,3104.4,3103.6,0.0073895]
[1642516633502,0.80554,3104.4,3103.7,0.03018564]
[1642516633704,2.55323909,3104.6,3103.6,0.0073895]
[1642516633944,2.55323909,3104.6,3103.8,0.00625265]
[1642516633945,0.1288,3104.5,3103.8,0.00625265]
[1642516634144,0.1288,3104.5,3103.6,0.0073895]
[1642516634645,0.1288,3104.5,3104.0,2.07157548]
[1642516634851,4.87926783,3104.9,3103.9,2.3392547]
[1642516634852,3.26836783,3104.9,3103.9,2.3392547]
[1642516635046,0.1288,3104.8,3104.1,0.00454738]
[1642516635251,3.39716783,3104.9,3104.0,0.00511581]
[1642516635448,2.44429909,3104.7,3104.0,0.00511581]
[1642516636048,1.92566941,3104.5,3103.7,0.00682108]
[1642516636649,1.92566941,3104.5,3103.7,1.61749108]
[1642516637151,1.92566941,3104.5,3103.8,0.00625265]
[1642516637353,1.10646913,3104.3,3103.8,0.00625265]
[1642516637804,1.10646913,3104.3,3103.6,0.0073895]
[1642516638005,0.1288,3104.2,3103.6,0.0073895]
[1642516638204,1.10646913,3104.3,3103.6,0.0073895]
[1642516638607,3.55076822,3104.3,3103.6,0.0073895]
[1642516638807,2.05,3104.2,3103.4,2.68356457]
[1642516639006,0.00641707,3104.1,3103.4,2.68356457]
[1642516639207,0.00284212,3104.1,3103.4,2.68356457]
[1642516639407,0.1288,3104.2,3103.4,2.68356457]
[1642516639408,0.00227369,3104.0,3103.4,2.68356457]
[1642516639706,0.00170527,3103.9,3103.6,0.80548]
[1642516640106,0.00113685,3103.8,3103.6,0.80548]
[1642516640306,0.00113685,3103.8,3103.4,2.68356457]
[1642516640507,0.80563,3103.9,3103.2,1.61105]
[1642516640707,0.00284212,3104.1,3103.3,0.8055723]
[1642516641008,3.2,3103.8,3103.3,0.80727757]
[1642516641209,3.2,3103.8,3103.4,1.17026014]